fUSD/lending_fUSD_20260701
["ID","MTS","AMOUNT","RATE_DAILY","PERIOD"]
[426829371,1782912670000,-447.733538,0.00027397,2]
[426829367,1782912670000,-1860.077223,0.00027397,2]
[426829358,1782912670000,-30758.89,0.00027397,10]
[426829360,1782912670000,-2529.746481,0.00027397,2]
[426829361,1782912670000,-151.0,0.00027397,2]
[426829364,1782912670000,-1860.077223,0.00027397,2]
[426829362,1782912670000,-447.733538,0.00027397,2]
[426829370,1782912670000,-2529.746481,0.00027397,2]
[426829400,1782912670000,-220.4,0.00027517,7]
[426829379,1782912670000,-307838.18134961,0.00027502,2]
[426829403,1782912670000,-162.96236,0.00027517,7]
[426829422,1782912670000,-263.532813,0.00027517,7]
[426829428,1782912670000,-517.05243255,0.00027596,2]
[426829426,1782912670000,-517.05243255,0.00027577,2]
[426829423,1782912670000,-263.532813,0.00027517,7]
[426829430,1782912670000,-200.0,0.00027647,2]
[426829437,1782912670000,-200.0,0.00027721,2]
[426829441,1782912670000,-786.0,0.00027726,2]
[426829439,1782912670000,-786.0,0.00027726,2]
[426829438,1782912670000,-821.02488944,0.00027726,2]
[426829434,1782912670000,-200.0,0.0002772,2]
[426829425,1782912670000,-517.05243255,0.00027556,2]
[426829431,1782912670000,-200.0,0.00027652,2]
[426829440,1782912670000,-786.0,0.00027726,2]
[426829432,1782912670000,-501.0,0.00027718,2]
[426829435,1782912670000,-200.0,0.0002772,2]
[426829436,1782912670000,-200.0,0.00027721,2]
[426829442,1782912670000,-152.0,0.00027729,11]
[426829443,1782912670000,-152.0,0.00027766,7]
[426829444,1782912670000,-1508.07,0.00027819,2]
[426829445,1782912670000,-154.02518816,0.00027877,3]
[426829446,1782912670000,-307.0,0.00027889,10]
[426829448,1782912670000,-43039.84644469,0.00028,5]
[426829433,1782912670000,-200.0,0.00027719,2]
[426829427,1782912670000,-2055.34506018,0.00027589,14]
[426829405,1782912670000,-162.96236,0.00027517,7]
[426829424,1782912670000,-154.72377748,0.00027527,2]
[426829398,1782912670000,-1598.36543315,0.00027514,2]
[426829399,1782912670000,-220.4,0.00027517,7]
[426829402,1782912670000,-220.4,0.00027517,7]
[426829401,1782912670000,-220.4,0.00027517,7]
[426829404,1782912670000,-162.96236,0.00027517,7]
[426829408,1782912670000,-151.0,0.00027517,7]
[426829407,1782912670000,-151.0,0.00027517,7]
[426829410,1782912670000,-211.270045,0.00027517,7]
[426829414,1782912670000,-211.270045,0.00027517,7]
[426829412,1782912670000,-211.270045,0.00027517,7]
[426829406,1782912670000,-162.96236,0.00027517,7]
[426829416,1782912670000,-159.224358,0.00027517,7]
[426829411,1782912670000,-159.224358,0.00027517,7]
[426829447,1782912670000,-950.02889432,0.00027953,2]
[426829418,1782912670000,-159.224358,0.00027517,7]
[426829420,1782912670000,-263.532813,0.00027517,7]
[426829419,1782912670000,-151.0,0.00027517,7]
[426829429,1782912670000,-1508.07,0.00027608,2]
[426829417,1782912670000,-151.0,0.00027517,7]
[426829409,1782912670000,-211.270045,0.00027517,7]
[426829415,1782912670000,-151.0,0.00027517,7]
[426829413,1782912670000,-159.224358,0.00027517,7]
[426829421,1782912670000,-263.532813,0.00027517,7]
[426829450,1782912671000,-1816.6450582,0.00027397,2]
[426829454,1782912671000,-642.39260275,0.00028,5]
[426829453,1782912671000,-217.08018997,0.00028,5]
[426829452,1782912671000,-316.91980893,0.00027397,2]
[426829451,1782912671000,-396.18161387,0.00027397,2]
[426829455,1782912671000,-607.22830062,0.00028,5]
[426829449,1782912671000,-447.733538,0.00027397,2]
[426829456,1782912671000,152.0,0.00027397,120]
[426829457,1782912672000,209.920894,0.00027789,120]
[426829458,1782912716000,229.165486,0.00027789,120]
[426829462,1782913057000,412.0,0.00030137,30]
[426829463,1782913108000,3575.41,0.00029935,30]
[426829464,1782913129000,1000.0,0.0003013,30]
[426829465,1782913142000,1027.61650809,0.000299,30]
[426829466,1782913147000,1000.0,0.0003013,30]
[426829467,1782913165000,1000.0,0.0003013,30]
[426829468,1782913195000,1000.0,0.0003013,30]
[426829469,1782913205000,1000.0,0.0003013,30]
[426829470,1782913234000,10000.0,0.00030137,30]
[426829471,1782913238000,855.2,0.00027517,30]
[426829472,1782913249000,10000.0,0.00030137,30]
[426829473,1782913265000,5405.0,0.00030137,30]
[426829474,1782913271000,1000.0,0.0003013,30]
[426829475,1782913279000,1000.0,0.0003013,30]
[426829476,1782913298000,1000.0,0.0003013,30]
[426829477,1782913309000,1000.0,0.0003013,30]
[426829478,1782913323000,1000.0,0.0003013,30]
[426829503,1782913724000,203.77567307,0.00028959,30]
[426829504,1782913724000,203.77567307,0.0002926,30]
[426829506,1782913740000,2000.0,0.00030132,120]
[426829505,1782913740000,2000.0,0.00030136,30]
[426829507,1782913741000,2000.0,0.00028489,60]
[426829520,1782913831000,-182.28430171,0.00014117,2]
[426829521,1782913831000,-362.3,0.00014209,2]
[426829522,1782913831000,-600.0,0.000143,5]
[426829524,1782913831000,-353.8945,0.0001439,2]
[426829533,1782913831000,-500.0,0.00014599,2]
[426829525,1782913831000,-7551.126606,0.0001439,2]
[426829527,1782913831000,-1200.0,0.000144,5]
[426829526,1782913831000,-1243.6607763,0.000144,2]
[426829528,1782913831000,-1900.0,0.000145,5]
[426829529,1782913831000,-500.0,0.00014599,2]
[426829531,1782913831000,-500.0,0.00014599,2]
[426829530,1782913831000,-302.7698325,0.00014599,2]
[426829532,1782913831000,-500.0,0.00014599,2]
[426829534,1782913831000,-406.73568886,0.00014599,2]
[426829523,1782913831000,-784.68949062,0.0001439,2]
[426829537,1782913831000,-2500.0,0.000146,5]
[426829536,1782913831000,-316.56337829,0.00014599,2]
[426829548,1782913831000,-103.24198551,0.000149,2]
[426829549,1782913831000,-183.73801449,0.000149,2]
[426829546,1782913831000,-832.22856812,0.000149,2]
[426829547,1782913831000,-3018.17094082,0.000149,2]
[426829540,1782913831000,-326.13865892,0.000148,5]
[426829539,1782913831000,-194.89650463,0.0001479,2]
[426829535,1782913831000,-500.0,0.00014599,2]
[426829544,1782913831000,-600.0,0.000149,5]
[426829542,1782913831000,-199.5,0.00014833,2]
[426829543,1782913831000,-165.203679,0.000149,2]
[426829545,1782913831000,-15.85306669,0.000149,2]
[426829541,1782913831000,-273.86134108,0.000148,5]
[426829538,1782913831000,-3100.0,0.000147,5]
[426829572,1782913837000,-15532.88413803,0.000149,2]
[426829575,1782913838000,-1426.22669075,0.000149,2]
[426829579,1782913838000,-198.4,0.0001499,2]
[426829577,1782913838000,-5970.0,0.00014959,2]
[426829578,1782913838000,-60000.0,0.0001499,2]
[426829576,1782913838000,-150.0,0.00014916,2]
[426829573,1782913838000,-233245.91215295,0.000149,2]
[426829583,1782913838000,-306.33308616,0.00014999,2]
[426829574,1782913838000,-2479.47711714,0.000149,2]
[426829582,1782913838000,-878.20218855,0.0001499,2]
[426829581,1782913838000,-878.20218855,0.0001499,2]
[426829580,1782913838000,-878.20218855,0.0001499,2]
[426829584,1782913838000,-8236626.27149106,0.00015,2]
[426829589,1782913839000,-176.10334246,0.000149,2]
[426829591,1782913839000,-300.0,0.00015,2]
[426829590,1782913839000,-787.73366598,0.00015,2]
[426829597,1782913843000,-736.40734751,0.00015,2]
[426829623,1782913846000,-2747.51329506,0.00015,2]
[426829622,1782913846000,-1966.51893819,0.00015,2]
[426829626,1782913870000,162.48,0.0002863,30]
[426829625,1782913870000,177.38,0.0002863,30]
[426829627,1782913871000,162.48,0.00029275,30]
[426829630,1782913872000,162.48,0.00029921,30]
[426829629,1782913872000,177.38,0.00029132,30]
[426829628,1782913872000,174.35,0.00029031,30]
[426829632,1782913873000,174.35,0.00026849,30]
[426829631,1782913873000,177.38,0.00029634,30]
[426829633,1782913874000,177.42,0.00030136,30]
[426829634,1782913933000,500.0,0.00028493,60]
[426829635,1782914006000,1000.89,0.0002863,30]
[426829636,1782914006000,1680.78,0.0002863,30]
[426829638,1782914007000,1680.78,0.00029132,30]
[426829637,1782914007000,1000.89,0.00029132,30]
[426829640,1782914008000,1680.78,0.00029634,30]
[426829639,1782914008000,1000.89,0.00029634,30]
[426829641,1782914027000,2941.69,0.0002863,30]
[426829642,1782914028000,2941.69,0.00029132,30]
[426829643,1782914029000,2941.69,0.00029634,30]
[426829645,1782914051000,1164.18,0.0002863,30]
[426829646,1782914052000,1164.18,0.00029132,30]
[426829647,1782914080000,901.76,0.0002863,30]
[426829648,1782914081000,901.76,0.00029132,30]
[426829650,1782914096000,915.0,0.00029132,30]
[426829649,1782914096000,915.0,0.0002863,30]
[426829661,1782914127000,518.89,0.0002863,30]
[426829662,1782914128000,518.89,0.00029132,30]
[426829667,1782914160000,461.75,0.00029132,30]
[426829666,1782914160000,461.75,0.0002863,30]
[426829668,1782914162000,414.74,0.0002863,30]
[426829669,1782914163000,414.74,0.00029132,30]
[426829673,1782914197000,879.87,0.00029132,30]
[426829672,1782914197000,879.87,0.0002863,30]
[426829680,1782914234000,1342.58,0.0002863,30]
[426829681,1782914235000,1342.58,0.00029132,30]
[426829682,1782914241000,585.06,0.0002863,30]
[426829683,1782914242000,585.06,0.00029132,30]
[426829684,1782914265000,817.62,0.0002863,30]
[426829685,1782914266000,817.62,0.00029132,30]
[426829694,1782914299000,895.67,0.00030055,30]
[426829695,1782914313000,903.03,0.0002863,30]
[426829696,1782914314000,903.03,0.00029132,30]
[426829697,1782914320000,594.72,0.0002863,30]
[426829698,1782914321000,594.72,0.00029132,30]
[426829699,1782914337000,534.6,0.0002863,30]
[426829700,1782914338000,534.6,0.00029132,30]
[426829701,1782914346000,422.59,0.0002863,30]
[426829702,1782914346000,527.11,0.0002863,30]
[426829704,1782914347000,527.11,0.00029132,30]
[426829703,1782914347000,422.59,0.00029132,30]
[426829706,1782914359000,155.93118,0.00030025,30]
[426829711,1782914386000,403.06,0.0002863,30]
[426829712,1782914387000,403.06,0.00029132,30]
[426829714,1782914403000,565.79,0.0002863,30]
[426829716,1782914404000,565.79,0.00029132,30]
[426829715,1782914404000,150.0,0.00018202,30]
[426829717,1782914411000,747.87,0.0002863,30]
[426829718,1782914412000,747.87,0.00029132,30]
[426829719,1782914457000,399.11,0.0002863,30]
[426829720,1782914458000,399.11,0.00029132,30]
[426829721,1782914478000,724.03,0.00029132,30]
[426829722,1782914482000,553.36,0.0002863,30]
[426829723,1782914483000,668.89,0.00029132,30]
[426829725,1782914483000,553.36,0.00029132,30]
[426829724,1782914483000,660.36,0.0002863,30]
[426829726,1782914484000,660.36,0.00029132,30]
[426829727,1782914502000,328.68,0.0002863,30]
[426829729,1782914503000,328.68,0.00029132,30]
[426829730,1782914516000,1787.01,0.0003,30]
[426829734,1782914546000,155.93118,0.00029525,30]
[426829733,1782914546000,474.99,0.0002863,30]
[426829732,1782914546000,435.19,0.0002863,30]
[426829735,1782914547000,435.19,0.00029132,30]
[426829736,1782914547000,474.99,0.00029132,30]
[426829738,1782914581000,292.7,0.0002863,30]
[426829739,1782914582000,292.7,0.00029132,30]
[426829740,1782914586000,158.38,0.00013998,2]
[426829743,1782914591000,489.14,0.0002863,30]
[426829742,1782914591000,400.39,0.0002863,30]
[426829745,1782914592000,489.14,0.00029132,30]
[426829744,1782914592000,400.39,0.00029132,30]
[426829746,1782914637000,459.8,0.0002863,30]
[426829747,1782914637000,381.5,0.0002863,30]
[426829748,1782914637000,276.72,0.0002863,30]
[426829750,1782914638000,381.5,0.00029132,30]
[426829751,1782914638000,276.72,0.00029132,30]
[426829749,1782914638000,459.8,0.00029132,30]
[426829752,1782914658000,161.61,0.00013998,2]
[426829753,1782914666000,326.67,0.0002863,30]
[426829754,1782914667000,326.67,0.00029132,30]
[426829756,1782914673000,228.37,0.00013975,2]
[426829757,1782914705000,242.16,0.0002863,30]
[426829758,1782914706000,242.16,0.00029132,30]
[426829759,1782914712000,373.92,0.0002863,30]
[426829760,1782914715000,373.92,0.00029132,30]
[426829761,1782914717000,164.66,0.00013687,2]
[426829762,1782914732000,155.93118,0.00030025,30]
[426829764,1782914733000,290.83,0.0002863,30]
[426829763,1782914733000,534.74858923,0.00013998,2]
[426829766,1782914734000,290.83,0.00029132,30]
[426829765,1782914734000,344.7043355,0.0001339,2]
[426829767,1782914735000,387.14207,0.00030135,120]
[426829768,1782914741000,287.96,0.00013824,2]
[426829769,1782914746000,345.22,0.0002863,30]
[426829770,1782914746000,213.95,0.0002863,30]
[426829772,1782914747000,213.95,0.00029132,30]
[426829771,1782914747000,345.22,0.00029132,30]
[426829773,1782914761000,151.0,0.00013998,2]
[426829775,1782914764000,322.01,0.0002863,30]
[426829774,1782914764000,196.27,0.0002863,30]
[426829776,1782914764000,268.93,0.0002863,30]
[426829779,1782914765000,196.27,0.00029132,30]
[426829778,1782914765000,268.93,0.00029132,30]
[426829777,1782914765000,322.01,0.00029132,30]
[426829780,1782914768000,241.957543,0.00030135,120]
[426829782,1782914799000,1214.47,0.00013859,2]
[426829784,1782914802000,193.576035,0.00030135,120]
[426829785,1782914816000,175.37,0.0002863,30]
[426829786,1782914816000,238.24,0.0002863,30]
[426829790,1782914817000,278.37,0.00029132,30]
[426829789,1782914817000,238.24,0.00029132,30]
[426829788,1782914817000,175.37,0.00029132,30]
[426829787,1782914817000,278.37,0.0002863,30]
[426829791,1782914840000,181.15,0.00013799,2]
[426829792,1782914852000,249.44,0.0002863,30]
[426829793,1782914852000,211.63,0.0002863,30]
[426829794,1782914853000,211.63,0.00029132,30]
[426829795,1782914853000,249.44,0.00029132,30]
[426829797,1782914862000,155.73,0.00029132,30]
[426829796,1782914862000,155.73,0.0002863,30]
[426829798,1782914869000,5000.0,0.00025626,60]
[426829799,1782914888000,393.17,0.00013752,2]
[426829800,1782914891000,150.0,0.00013752,2]
[426829802,1782914906000,156.44,0.0002863,30]
[426829801,1782914906000,228.58,0.0002863,30]
[426829804,1782914907000,156.44,0.00029195,30]
[426829803,1782914907000,228.58,0.00029132,30]
[426829805,1782914920000,500.0,0.00030136,30]
[426829806,1782914922000,192.22,0.0002863,30]
[426829807,1782914923000,192.22,0.00029132,30]
[426829808,1782914924000,201.42,0.00013708,2]
[426829809,1782914937000,200.0,0.00013769,2]
[426829811,1782914942000,2000.0,0.00030134,120]
[426829810,1782914942000,2000.0,0.00030135,30]
[426829812,1782914943000,2000.0,0.00028492,60]
[426829814,1782914951000,165.91,0.0002863,30]
[426829817,1782914952000,165.91,0.00029275,30]
[426829816,1782914952000,172.19,0.0002863,30]
[426829815,1782914952000,202.78,0.0002863,30]
[426829818,1782914953000,202.78,0.00029132,30]
[426829820,1782914953000,172.19,0.00029132,30]
[426829823,1782914981000,312.20733185,0.00013933,2]
[426829825,1782914996000,153.52,0.0002863,30]
[426829824,1782914996000,180.89,0.0002863,30]
[426829827,1782914997000,153.52,0.00029132,30]
[426829826,1782914997000,180.89,0.00029132,30]
[426829829,1782915015000,200.0,0.00013699,2]
[426829833,1782915029000,163.79,0.00029132,30]
[426829832,1782915029000,153.67,0.0002863,30]
[426829831,1782915029000,163.79,0.0002863,30]
[426829830,1782915029000,161.54,0.0002863,30]
[426829834,1782915030000,161.54,0.00029383,30]
[426829835,1782915030000,153.67,0.00029195,30]
[426829845,1782915031000,-3229.74,0.00014023,2]
[426829846,1782915031000,-600.0,0.00014028,2]
[426829849,1782915031000,-600.0,0.00014053,2]
[426829847,1782915031000,-300.0,0.00014033,2]
[426829852,1782915031000,-220.0,0.00014162,2]
[426829851,1782915031000,-500.0,0.00014102,2]
[426829861,1782915031000,-500.0,0.00014499,2]
[426829859,1782915031000,-6266.6379,0.00014466,2]
[426829854,1782915031000,-500.0,0.00014202,2]
[426829856,1782915031000,-387.152069,0.00014364,2]
[426829863,1782915031000,-500.0,0.00014499,2]
[426829848,1782915031000,-150.0,0.00014043,2]
[426829857,1782915031000,-166.66,0.00014394,2]
[426829862,1782915031000,-519.82372484,0.00014499,2]
[426829850,1782915031000,-611.2677191,0.00014062,2]
[426829853,1782915031000,-312.20733183,0.00014166,2]
[426829858,1782915031000,-312.20733183,0.00014399,2]
[426829855,1782915031000,-1158.88,0.00014339,2]
[426829867,1782915031000,-519.82372484,0.00014499,2]
[426829864,1782915031000,-519.82372484,0.00014499,2]
[426829865,1782915031000,-519.82372484,0.00014499,2]
[426829866,1782915031000,-519.82372484,0.00014499,2]
[426829868,1782915031000,-519.82372484,0.00014499,2]
[426829860,1782915031000,-150.0,0.00014498,2]
[426829919,1782915032000,-519.82372484,0.00014499,2]
[426829918,1782915032000,-519.82372484,0.00014499,2]
[426829925,1782915032000,-519.82372484,0.00014499,2]
[426829923,1782915032000,-519.82372484,0.00014499,2]
[426829940,1782915032000,-2010.73760005,0.00014499,2]
[426829917,1782915032000,-519.82372484,0.00014499,2]
[426829921,1782915032000,-519.82372484,0.00014499,2]
[426829920,1782915032000,-519.82372484,0.00014499,2]
[426829922,1782915032000,-519.82372484,0.00014499,2]
[426829915,1782915032000,-519.82372484,0.00014499,2]
[426829926,1782915032000,-519.82372484,0.00014499,2]
[426829924,1782915032000,-519.82372484,0.00014499,2]
[426829932,1782915032000,-2010.73760005,0.00014499,2]
[426829929,1782915032000,-301.92595448,0.00014499,2]
[426829930,1782915032000,-186.40434977,0.00014499,2]
[426829931,1782915032000,-500.0,0.00014499,2]
[426829928,1782915032000,-500.0,0.00014499,2]
[426829933,1782915032000,-2010.73760005,0.00014499,2]
[426829939,1782915032000,-2010.73760005,0.00014499,2]
[426829934,1782915032000,-2010.73760005,0.00014499,2]
[426829936,1782915032000,-2010.73760005,0.00014499,2]
[426829935,1782915032000,-2010.73760005,0.00014499,2]
[426829938,1782915032000,-2010.73760005,0.00014499,2]
[426829937,1782915032000,-2010.73760005,0.00014499,2]
[426829908,1782915032000,-519.82372484,0.00014499,2]
[426829927,1782915032000,-500.0,0.00014499,2]
[426829905,1782915032000,-519.82372484,0.00014499,2]
[426829879,1782915032000,-274.64603224,0.00014499,2]
[426829910,1782915032000,-519.82372484,0.00014499,2]
[426829869,1782915032000,-519.82372484,0.00014499,2]
[426829872,1782915032000,-484.8205052,0.00014499,2]
[426829871,1782915032000,-519.82372484,0.00014499,2]
[426829870,1782915032000,-519.82372484,0.00014499,2]
[426829874,1782915032000,-244.99678036,0.00014499,2]
[426829875,1782915032000,-274.82694448,0.00014499,2]
[426829873,1782915032000,-35.00321964,0.00014499,2]
[426829877,1782915032000,-519.82372484,0.00014499,2]
[426829888,1782915032000,-519.82372484,0.00014499,2]
[426829876,1782915032000,-519.82372484,0.00014499,2]
[426829880,1782915032000,-245.1776926,0.00014499,2]
[426829882,1782915032000,-58.50105175,0.00014499,2]
[426829878,1782915032000,-519.82372484,0.00014499,2]
[426829881,1782915032000,-461.32267309,0.00014499,2]
[426829883,1782915032000,-519.82372484,0.00014499,2]
[426829886,1782915032000,-519.82372484,0.00014499,2]
[426829885,1782915032000,-519.82372484,0.00014499,2]
[426829884,1782915032000,-519.82372484,0.00014499,2]
[426829889,1782915032000,-407.21746739,0.00014499,2]
[426829896,1782915032000,-519.82372484,0.00014499,2]
[426829892,1782915032000,-112.60625745,0.00014499,2]
[426829894,1782915032000,-519.82372484,0.00014499,2]
[426829899,1782915032000,-519.82372484,0.00014499,2]
[426829903,1782915032000,-519.82372484,0.00014499,2]
[426829901,1782915032000,-519.82372484,0.00014499,2]
[426829906,1782915032000,-519.82372484,0.00014499,2]
[426829950,1782915032000,-2010.73760005,0.00014499,2]
[426829913,1782915032000,-519.82372484,0.00014499,2]
[426829949,1782915032000,-2010.73760005,0.00014499,2]
[426829974,1782915032000,-1974.17873458,0.00014499,2]
[426829976,1782915032000,-1974.17873458,0.00014499,2]
[426829975,1782915032000,-1974.17873458,0.00014499,2]
[426829980,1782915032000,-673.90711308,0.000145,2]
[426829978,1782915032000,-185.26188027,0.000145,2]
[426829977,1782915032000,-1974.17873458,0.00014499,2]
[426829979,1782915032000,-13185.43635545,0.000145,2]
[426829981,1782915032000,-665.72995843,0.000145,2]
[426829982,1782915032000,-1010.31988806,0.000145,2]
[426829983,1782915032000,-500.0,0.00014697,2]
[426829984,1782915032000,-500.0,0.00014697,2]
[426829996,1782915032000,-180.14643899,0.00014697,2]
[426829967,1782915032000,-1974.17873458,0.00014499,2]
[426829986,1782915032000,-500.0,0.00014697,2]
[426829987,1782915032000,-578.24460923,0.00014697,2]
[426829988,1782915032000,-260.01622037,0.00014697,2]
[426829989,1782915032000,-500.0,0.00014697,2]
[426829995,1782915032000,-464.71433175,0.00014697,2]
[426829990,1782915032000,-374.07470112,0.00014697,2]
[426829992,1782915032000,-268.75500374,0.00014697,2]
[426829991,1782915032000,-125.92529888,0.00014697,2]
[426829994,1782915032000,-500.0,0.00014697,2]
[426829993,1782915032000,-231.24499626,0.00014697,2]
[426829997,1782915032000,-375.56582145,0.00014697,2]
[426829998,1782915032000,-5.78637775,0.00014697,2]
[426829999,1782915032000,-276.49322225,0.00014697,2]
[426829985,1782915032000,-440.42675451,0.00014697,2]
[426829966,1782915032000,-2010.73760005,0.00014499,2]
[426829951,1782915032000,-2010.73760005,0.00014499,2]
[426829971,1782915032000,-1974.17873458,0.00014499,2]
[426829970,1782915032000,-1974.17873458,0.00014499,2]
[426829941,1782915032000,-2010.73760005,0.00014499,2]
[426829942,1782915032000,-2010.73760005,0.00014499,2]
[426829948,1782915032000,-2010.73760005,0.00014499,2]
[426829943,1782915032000,-2010.73760005,0.00014499,2]
[426829945,1782915032000,-2010.73760005,0.00014499,2]
[426829946,1782915032000,-2010.73760005,0.00014499,2]
[426829947,1782915032000,-2010.73760005,0.00014499,2]
[426829944,1782915032000,-2010.73760005,0.00014499,2]
[426829952,1782915032000,-2010.73760005,0.00014499,2]
[426829953,1782915032000,-113.00822031,0.00014499,2]
[426829955,1782915032000,-2010.73760005,0.00014499,2]
[426829956,1782915032000,-2010.73760005,0.00014499,2]
[426829960,1782915032000,-2010.73760005,0.00014499,2]
[426829963,1782915032000,-2010.73760005,0.00014499,2]
[426829959,1782915032000,-2010.73760005,0.00014499,2]
[426829957,1782915032000,-2010.73760005,0.00014499,2]
[426829962,1782915032000,-2010.73760005,0.00014499,2]
[426829961,1782915032000,-2010.73760005,0.00014499,2]
[426829958,1782915032000,-2010.73760005,0.00014499,2]
[426829973,1782915032000,-1974.17873458,0.00014499,2]
[426829972,1782915032000,-1974.17873458,0.00014499,2]
[426829954,1782915032000,-1897.72937974,0.00014499,2]
[426829965,1782915032000,-2010.73760005,0.00014499,2]
[426829964,1782915032000,-2010.73760005,0.00014499,2]
[426829968,1782915032000,-1974.17873458,0.00014499,2]
[426829969,1782915032000,-1974.17873458,0.00014499,2]
[426830014,1782915038000,-500.0,0.00014697,2]
[426830013,1782915038000,-500.0,0.00014697,2]
[426830010,1782915038000,-223.50677775,0.00014697,2]
[426830011,1782915038000,-500.0,0.00014697,2]
[426830015,1782915038000,-500.0,0.00014697,2]
[426830016,1782915038000,-497.88506027,0.00014697,2]
[426830012,1782915038000,-500.0,0.00014697,2]
[426830017,1782915038000,-2.11493973,0.00014697,2]
[426830018,1782915038000,-11019.1434,0.00014698,2]
[426830019,1782915038000,-4511.6257983,0.00014699,2]
[426830023,1782915039000,-3379.49192746,0.00014699,2]
[426830024,1782915040000,-1003.17368511,0.00014699,2]
[426830026,1782915041000,-1089.21153808,0.00014699,2]
[426830025,1782915041000,-654.16410401,0.00014699,2]
[426830037,1782915043000,-747.0,0.00014699,2]
[426830081,1782915046000,-3000.0,0.00014798,2]
[426830075,1782915046000,-3000.0,0.00014798,2]
[426830072,1782915046000,-3000.0,0.00014798,2]
[426830069,1782915046000,-3000.0,0.00014798,2]
[426830073,1782915046000,-3000.0,0.00014798,2]
[426830071,1782915046000,-3000.0,0.00014798,2]
[426830067,1782915046000,-500.0,0.00014773,2]
[426830066,1782915046000,-171.68332367,0.00014725,2]
[426830063,1782915046000,-1553.28841383,0.00014699,2]
[426830065,1782915046000,-171.68332367,0.00014724,2]
[426830070,1782915046000,-3000.0,0.00014798,2]
[426830061,1782915046000,-2500.0,0.00014699,2]
[426830062,1782915046000,-7994.04760048,0.00014699,2]
[426830060,1782915046000,-3820.73174704,0.00014699,2]
[426830059,1782915046000,-207.28,0.00014499,2]
[426830058,1782915046000,-292.72,0.00014499,2]
[426830076,1782915046000,-3000.0,0.00014798,2]
[426830068,1782915046000,-3000.0,0.00014798,2]
[426830078,1782915046000,-3000.0,0.00014798,2]
[426830064,1782915046000,-2591.0801623,0.00014699,2]
[426830077,1782915046000,-3000.0,0.00014798,2]
[426830097,1782915046000,-500.0,0.00014999,2]
[426830094,1782915046000,-7611.0056948,0.00014996,2]
[426830095,1782915046000,-3368.7512382,0.00014996,2]
[426830093,1782915046000,-4433.1750934,0.00014996,2]
[426830092,1782915046000,-14462.6894136,0.000149,2]
[426830080,1782915046000,-3000.0,0.00014798,2]
[426830090,1782915046000,-1466.49232841,0.000149,2]
[426830091,1782915046000,-2076.71502483,0.000149,2]
[426830086,1782915046000,-194.97247091,0.000148,2]
[426830096,1782915046000,-9227.6381093,0.00014996,2]
[426830089,1782915046000,-1009.77178841,0.000149,2]
[426830087,1782915046000,-171.68332367,0.00014825,2]
[426830088,1782915046000,-1422.8033,0.000149,2]
[426830084,1782915046000,-2000.0,0.00014798,2]
[426830083,1782915046000,-3000.0,0.00014798,2]
[426830082,1782915046000,-3000.0,0.00014798,2]
[426830079,1782915046000,-3000.0,0.00014798,2]
[426830085,1782915046000,-2470.2518,0.00014799,2]
[426830074,1782915046000,-3000.0,0.00014798,2]
[426830112,1782915047000,-500.0,0.00014999,2]
[426830111,1782915047000,-530.89521088,0.00014999,2]